Departmental family,Entity,Date Paid,Expense type,Expense Area,Supplier,Transaction Number,Amount,Description,Supplier Type,Expenditure Type
UK Statistics Authority,Office for National Statistics,03-Jun-16,Telecomms                     ,Digital Services Technology and Methodology,Logicalis Ltd,80560483,"13,860.00",Information Management Services,SME,Programme
UK Statistics Authority,Office for National Statistics,03-Jun-16,Telecomms                     ,Digital Services Technology and Methodology,Logicalis Ltd,80560483,"61,953.60",Information Management Services,SME,Programme
UK Statistics Authority,Office for National Statistics,03-Jun-16,Capital Major Works >25k      ,Property Management Newport,Mitie Facilities Services Ltd,80560486,"53,667.60",Newport Phase 3 Major Works,Large,Programme
UK Statistics Authority,Office for National Statistics,03-Jun-16,Capital Major Works >25k      ,Property Management Titchfield,Mitie Facilities Services Ltd,80560486,"6,656.40",Titchfield Phase 4  Major Works,Large,Programme
UK Statistics Authority,Office for National Statistics,03-Jun-16,Travel & Subsistence,Corporate Support,Redfern Travel,80560489,"33,724.39",Travel and Accommodation Booking Service,SME,Programme
UK Statistics Authority,Office for National Statistics,06-Jun-16,Telecomms                     ,Data Collection,Level 3 Communications UK Limited,80560549,"40,615.20",Field and Public Enquiry Line,Large,Programme
UK Statistics Authority,Office for National Statistics,06-Jun-16,Specialist Contractors IT,Digital Services Technology and Methodology,Sopra Steria,80560555,"5,046.98",Information Management Services,Large,Programme
UK Statistics Authority,Office for National Statistics,06-Jun-16,Specialist Contractors IT,Digital Services Technology and Methodology,Sopra Steria,80560555,"20,704.44",Information Management Services,Large,Programme
UK Statistics Authority,Office for National Statistics,07-Jun-16,Telecomms                     ,Data Collection,BT Global Services,80560982,"6,688.93",Information Management Services,Large,Programme
UK Statistics Authority,Office for National Statistics,07-Jun-16,Telecomms                     ,Digital Services Technology and Methodology,BT Global Services,80560982,"21,120.00",Information Management Services,Large,Programme
UK Statistics Authority,Office for National Statistics,07-Jun-16,IT Maintenance Hardware       ,Digital Services Technology and Methodology,Computacenter (UK) Limited,80560988,"348,495.15",Information Management Services,Large,Programme
UK Statistics Authority,Office for National Statistics,07-Jun-16,IT Purchases <2k,Data Collection,Computacenter (UK) Limited,80560988,451.6,Information Management Services,Large,Programme
UK Statistics Authority,Office for National Statistics,07-Jun-16,IT Purchases <2k,Digital Services Technology and Methodology,Computacenter (UK) Limited,80560988,199.89,Information Management Services,Large,Programme
UK Statistics Authority,Office for National Statistics,07-Jun-16,Specialist Contractors IT,Digital Services Technology and Methodology,Methods Professional Services,80560994,"9,198.00",Information Management Services,SME,Programme
UK Statistics Authority,Office for National Statistics,07-Jun-16,Specialist Contractors Non IT,Finance,Methods Professional Services,80560994,"10,788.00",Information Management Services,SME,Programme
UK Statistics Authority,Office for National Statistics,07-Jun-16,Specialist Contractors Non IT,Finance,Methods Professional Services,80560994,"10,788.00",Information Management Services,SME,Programme
UK Statistics Authority,Office for National Statistics,08-Jun-16,Childcare Services,Corporate Support,Computershare Voucher Services,80561003,"31,424.46",Childcare Vouchers,Large,Programme
UK Statistics Authority,Office for National Statistics,08-Jun-16,Childcare Services,Finance,Computershare Voucher Services,80561003,"2,451.11",Childcare Vouchers,Large,Programme
UK Statistics Authority,Office for National Statistics,08-Jun-16,Specialist Contractors IT,Digital Services Technology and Methodology,Sopra Steria,80561022,"5,033.70",Information Management Services,Large,Programme
UK Statistics Authority,Office for National Statistics,08-Jun-16,Specialist Contractors IT,Digital Services Technology and Methodology,Sopra Steria,80561022,"10,710.07",Information Management Services,Large,Programme
UK Statistics Authority,Office for National Statistics,08-Jun-16,Specialist Contractors IT,Digital Services Technology and Methodology,Sopra Steria,80561022,"24,373.70",Information Management Services,Large,Programme
UK Statistics Authority,Office for National Statistics,08-Jun-16,Specialist Contractors IT,Digital Services Technology and Methodology,Sopra Steria,80561022,"12,936.46",Information Management Services,Large,Programme
UK Statistics Authority,Office for National Statistics,08-Jun-16,Statistical Services/Surveys  ,National Accounts and Economic Statistics,TNS UK Ltd,80561025,"185,431.20",Statistical Services,Large,Programme
UK Statistics Authority,Office for National Statistics,08-Jun-16,Statistical Services/Surveys  ,Social and Analysis,TNS UK Ltd,80561025,"380,648.40",Statistical Services,Large,Programme
UK Statistics Authority,Office for National Statistics,08-Jun-16,Stationery                    ,Business Services and Development,Williams Lea,80561028,"10,089.98",Printing  Services,Large,Programme
UK Statistics Authority,Office for National Statistics,08-Jun-16,Stationery                    ,Business Services and Development,Williams Lea,80561028,"18,738.54",Printing  Services,Large,Programme
UK Statistics Authority,Office for National Statistics,09-Jun-16,Procurement Card,Corporate Support,Barclays Bank Plc,30000060,"63,361.75",Multiple Procurement Card Purchases,Large,Programme
UK Statistics Authority,Office for National Statistics,09-Jun-16,Stationery                    ,Corporate Support,Barclays Bank Plc,30000060,"10,331.76",Multiple Procurement Card Purchases,Large,Programme
UK Statistics Authority,Office for National Statistics,09-Jun-16,Travel & Subsistence,Corporate Support,Redfern Travel,80561519,"29,443.49",Travel and Accommodation Booking Service,SME,Programme
UK Statistics Authority,Office for National Statistics,09-Jun-16,Postage                       ,Data Collection,UK Mail,80561522,"32,682.24",Outgoing Postage,Large,Programme
UK Statistics Authority,Office for National Statistics,10-Jun-16,IT Bureau Services            ,Digital Services Technology and Methodology,Bramble.CC,80561524,"95,958.79",Information Management Services,SME,Programme
UK Statistics Authority,Office for National Statistics,14-Jun-16,IT Bureau Services            ,Digital Services Technology and Methodology,Bramble.CC,80561980,"89,351.33",Information Management Services,SME,Programme
UK Statistics Authority,Office for National Statistics,15-Jun-16,Telecomms                     ,Digital Services Technology and Methodology,BT Global Services,80561992,"34,078.90",Information Management Services,Large,Programme
UK Statistics Authority,Office for National Statistics,15-Jun-16,Software Pool 4yr,Digital Services Technology and Methodology,Clearvision-CM,80561994,"33,773.59",Information Management Services,SME,Programme
UK Statistics Authority,Office for National Statistics,15-Jun-16,IT Purchases <2k,Digital Services Technology and Methodology,SCC,80562005,"1,719.61",Information Management Services,Large,Programme
UK Statistics Authority,Office for National Statistics,15-Jun-16,IT Purchases >2k,Digital Services Technology and Methodology,SCC,80562005,"91,687.14",Data Centre Hosting,Large,Programme
UK Statistics Authority,Office for National Statistics,16-Jun-16,Travel & Subsistence,Corporate Support,Redfern Travel,80562462,"35,929.44",Travel and Accommodation Booking Service,SME,Programme
UK Statistics Authority,Office for National Statistics,17-Jun-16,Specialist Contractors IT,Digital Services Technology and Methodology,LA International,80562474,"30,058.18",Information Management Services,SME,Programme
UK Statistics Authority,Office for National Statistics,21-Jun-16,Contractual Service Payments - IT,Digital Services Technology and Methodology,Servicenow,80562955,"41,907.99",Information Management Services,Large,Programme
UK Statistics Authority,Office for National Statistics,22-Jun-16,Specialist Contractors Non IT,Finance,Certus Solutions Consulting Services Ltd,80562958,"118,515.00",Information Management Services,SME,Programme
UK Statistics Authority,Office for National Statistics,22-Jun-16,Consultants Non IT,Social and Analysis,Equiniti Limited,80562961,"36,672.71",Information Management Services,Large,Programme
UK Statistics Authority,Office for National Statistics,22-Jun-16,Miscellaneous Fees            ,Social and Analysis,Ricardo-Aea Ltd,80562967,"28,024.80",Statistical Services,SME,Programme
UK Statistics Authority,Office for National Statistics,23-Jun-16,Specialist Contractors IT,Digital Services Technology and Methodology,Indigoblue,80563442,"52,800.00",Information Management Services,Large,Programme
UK Statistics Authority,Office for National Statistics,23-Jun-16,Specialist Contractors IT,Digital Services Technology and Methodology,Indigoblue,80563442,360,Information Management Services,Large,Programme
UK Statistics Authority,Office for National Statistics,23-Jun-16,Travel & Subsistence,Corporate Support,Redfern Travel,80563443,"32,191.62",Travel and Accommodation Booking Service,SME,Programme
UK Statistics Authority,Office for National Statistics,24-Jun-16,Specialist Contractors IT,Digital Services Technology and Methodology,E Synergy Solutions,80563452,"70,800.00",Information Management Services,SME,Programme
UK Statistics Authority,Office for National Statistics,24-Jun-16,Specialist Contractors IT,Digital Services Technology and Methodology,Sopra Steria,80563463,"37,964.20",Information Management Services,Large,Programme
UK Statistics Authority,Office for National Statistics,24-Jun-16,Specialist Contractors IT,Digital Services Technology and Methodology,Sopra Steria,80563463,"10,061.69",Information Management Services,Large,Programme
UK Statistics Authority,Office for National Statistics,29-Jun-16,Rent Payable,Property Management Titchfield,Eaton Aerospace Limited,80563840,"25,154.40",Titchfield Rent,Large,Programme
UK Statistics Authority,Office for National Statistics,29-Jun-16,IT Maintenance Hardware       ,Digital Services Technology and Methodology,Logicalis Ltd,80563845,"10,277.96",Information Management Services,SME,Programme
UK Statistics Authority,Office for National Statistics,29-Jun-16,Telecomms                     ,Digital Services Technology and Methodology,Logicalis Ltd,80563845,"63,675.64",Information Management Services,SME,Programme
UK Statistics Authority,Office for National Statistics,29-Jun-16,Rent Payable,Property Management London,Metropolitan Police,80563847,"1,010,250.00",Drummond Gate Rent,Large,Programme
UK Statistics Authority,Office for National Statistics,30-Jun-16,Travel & Subsistence,Corporate Support,Redfern Travel,80564323,"39,956.08",Travel and Accommodation Booking Service,SME,Programme
